[Event "*** SCC Grand Prix: Titled Tuesday Blitz"]
[Site "Chess.com"]
[Date "2020.06.02"]
[Round "4"]
[White "Ariadna_Atreides"]
[Black "Kolle05"]
[Result "0-1"]
[WhiteElo "2041"]
[BlackElo "2383"]
[TimeControl "180+1"]
[EndTime "10:40:14 PDT"]
[Termination "Kolle05 won on time"]

1. d4 {[%clk 0:03:00.9]} 1... Nf6 {[%clk 0:02:59.4]} 2. Nf3 {[%clk 0:03:00.4]}
2... g6 {[%clk 0:02:59.3]} 3. c4 {[%clk 0:03:00]} 3... Bg7 {[%clk 0:02:59.4]} 4.
Nc3 {[%clk 0:03:00.5]} 4... O-O {[%clk 0:02:59.4]} 5. e4 {[%clk 0:03:00.3]} 5...
d6 {[%clk 0:02:59.7]} 6. Be2 {[%clk 0:03:00.6]} 6... e5 {[%clk 0:02:59.7]} 7. d5
{[%clk 0:03:00.9]} 7... a5 {[%clk 0:02:59]} 8. Bg5 {[%clk 0:03:00.6]} 8... h6
{[%clk 0:02:58.2]} 9. Bh4 {[%clk 0:03:01.1]} 9... Qe8 {[%clk 0:02:58.1]} 10. Nd2
{[%clk 0:03:01]} 10... c6 {[%clk 0:02:50.2]} 11. O-O {[%clk 0:02:57.3]} 11...
Nfd7 {[%clk 0:02:46.6]} 12. a3 {[%clk 0:02:48.7]} 12... f5 {[%clk 0:02:35.8]}
13. exf5 {[%clk 0:02:43]} 13... g5 {[%clk 0:02:20.6]} 14. Bg3 {[%clk 0:02:28.8]}
14... Nc5 {[%clk 0:02:02.7]} 15. Nde4 {[%clk 0:02:24.9]} 15... Nxe4 {[%clk
0:01:24.6]} 16. Nxe4 {[%clk 0:02:19.9]} 16... Qe7 {[%clk 0:01:24.4]} 17. dxc6
{[%clk 0:02:12.5]} 17... Bxf5 {[%clk 0:01:17.5]} 18. cxb7 {[%clk 0:01:59.2]}
18... Ra6 {[%clk 0:01:10.8]} 19. Qd5+ {[%clk 0:01:30.6]} 19... Qf7 {[%clk
0:00:36.6]} 20. Qxf7+ {[%clk 0:01:18.7]} 20... Rxf7 {[%clk 0:00:37.5]} 21. f3
{[%clk 0:01:08]} 21... Rb6 {[%clk 0:00:31.6]} 22. c5 {[%clk 0:01:00.2]} 22...
dxc5 {[%clk 0:00:25.7]} 23. Bc4 {[%clk 0:00:57.4]} 23... Be6 {[%clk 0:00:17.5]}
24. Bxe6 {[%clk 0:00:56.9]} 24... Rxe6 {[%clk 0:00:18.4]} 25. Nxc5 {[%clk
0:00:57.3]} 25... Rb6 {[%clk 0:00:17.4]} 26. Rfd1 {[%clk 0:00:53.5]} 26... Kh7
{[%clk 0:00:14.2]} 27. Rd8 {[%clk 0:00:52.2]} 27... Bf8 {[%clk 0:00:13.7]} 28.
Bf2 {[%clk 0:00:48.1]} 28... Bxc5 {[%clk 0:00:12.1]} 29. Bxc5 {[%clk 0:00:42.6]}
29... Rbxb7 {[%clk 0:00:12.4]} 30. b4 {[%clk 0:00:39.1]} 30... Na6 {[%clk
0:00:11.2]} 31. Re1 {[%clk 0:00:22.3]} 31... axb4 {[%clk 0:00:08]} 32. axb4
{[%clk 0:00:21.9]} 32... Nxb4 {[%clk 0:00:06.8]} 33. Rxe5 {[%clk 0:00:15.9]}
33... Nc6 {[%clk 0:00:05.9]} 34. Ree8 {[%clk 0:00:10]} 34... Nxd8 {[%clk
0:00:05.8]} 35. Rxd8 {[%clk 0:00:10.9]} 35... Rfc7 {[%clk 0:00:06.6]} 36. Bd4
{[%clk 0:00:09.5]} 36... Rc2 {[%clk 0:00:06.2]} 37. h3 {[%clk 0:00:08.4]} 37...
Rb1+ {[%clk 0:00:05.2]} 38. Kh2 {[%clk 0:00:07.8]} 38... Rd1 {[%clk 0:00:05.2]}
39. Rh8+ {[%clk 0:00:06.3]} 39... Kg6 {[%clk 0:00:05.3]} 40. Be5 {[%clk
0:00:03]} 40... Rdd2 {[%clk 0:00:04.8]} 41. Rg8+ {[%clk 0:00:02.4]} 41... Kf5
{[%clk 0:00:04.9]} 0-1

[Event "*** SCC Grand Prix: Titled Tuesday Blitz"]
[Site "Chess.com"]
[Date "2020.06.02"]
[Round "4"]
[White "econpower"]
[Black "14Sokol88"]
[Result "1-0"]
[WhiteElo "2631"]
[BlackElo "2419"]
[TimeControl "180+1"]
[EndTime "10:40:15 PDT"]
[Termination "econpower won by resignation"]

1. c4 {[%clk 0:03:00.9]} 1... Nf6 {[%clk 0:02:53.6]} 2. g3 {[%clk 0:03:00.3]}
2... c6 {[%clk 0:02:40.8]} 3. Bg2 {[%clk 0:03:00]} 3... d5 {[%clk 0:02:40.7]} 4.
Nf3 {[%clk 0:03:00.9]} 4... dxc4 {[%clk 0:02:20.7]} 5. a4 {[%clk 0:03:00.5]}
5... g6 {[%clk 0:02:14.4]} 6. Na3 {[%clk 0:03:00.1]} 6... Bg7 {[%clk 0:02:07.4]}
7. Nxc4 {[%clk 0:02:59.6]} 7... O-O {[%clk 0:02:06.9]} 8. O-O {[%clk 0:02:59.7]}
8... a5 {[%clk 0:02:00.9]} 9. d3 {[%clk 0:02:51.2]} 9... Na6 {[%clk 0:01:58.1]}
10. Bd2 {[%clk 0:02:02.9]} 10... Nc5 {[%clk 0:01:20.5]} 11. b4 {[%clk
0:01:42.6]} 11... axb4 {[%clk 0:01:17.2]} 12. Bxb4 {[%clk 0:01:42.5]} 12... Ne6
{[%clk 0:00:59.6]} 13. Rc1 {[%clk 0:01:18.5]} 13... Nd5 {[%clk 0:00:55.6]} 14.
Bd2 {[%clk 0:01:18.5]} 14... Nd4 {[%clk 0:00:46.6]} 15. a5 {[%clk 0:01:06.7]}
15... Nxf3+ {[%clk 0:00:43]} 16. Bxf3 {[%clk 0:01:06.6]} 16... Bh3 {[%clk
0:00:42.2]} 17. Re1 {[%clk 0:01:06.2]} 17... Kh8 {[%clk 0:00:30]} 18. Qb3 {[%clk
0:01:05.9]} 18... Bc8 {[%clk 0:00:23.2]} 19. Red1 {[%clk 0:01:03.3]} 19... f5
{[%clk 0:00:21.1]} 20. Bg2 {[%clk 0:00:51]} 20... e5 {[%clk 0:00:13.5]} 21. e4
{[%clk 0:00:50.2]} 21... Nc7 {[%clk 0:00:12.2]} 22. Bc3 {[%clk 0:00:49.6]} 22...
Re8 {[%clk 0:00:08.8]} 23. Qb2 {[%clk 0:00:49.1]} 23... Qe7 {[%clk 0:00:08]} 24.
Bb4 {[%clk 0:00:47.7]} 24... Qe6 {[%clk 0:00:07.6]} 25. Bc3 {[%clk 0:00:38.8]}
25... Nb5 {[%clk 0:00:06.4]} 26. Be1 {[%clk 0:00:27.3]} 26... f4 {[%clk
0:00:06]} 27. Nb6 {[%clk 0:00:19.6]} 27... Ra7 {[%clk 0:00:05.2]} 28. Nxc8
{[%clk 0:00:19.7]} 28... Rxc8 {[%clk 0:00:05.3]} 29. Rc5 {[%clk 0:00:20.6]}
29... Re8 {[%clk 0:00:04.2]} 30. Ra1 {[%clk 0:00:16.3]} 30... g5 {[%clk
0:00:04.7]} 31. Qc1 {[%clk 0:00:13]} 31... Ra6 {[%clk 0:00:05.2]} 32. Bf1 {[%clk
0:00:12.8]} 32... Rf8 {[%clk 0:00:05.4]} 33. d4 {[%clk 0:00:12.6]} 33... exd4
{[%clk 0:00:05.5]} 34. Rxg5 {[%clk 0:00:12.7]} 34... Bf6 {[%clk 0:00:04.6]} 35.
Rf5 {[%clk 0:00:12.2]} 35... Raa8 {[%clk 0:00:04.6]} 36. Qxf4 {[%clk 0:00:11.5]}
36... Bg7 {[%clk 0:00:04]} 37. Bb4 {[%clk 0:00:10.6]} 37... Rxf5 {[%clk
0:00:03.8]} 38. exf5 {[%clk 0:00:11.5]} 38... Qd5 {[%clk 0:00:04]} 39. Rd1
{[%clk 0:00:11.5]} 39... Bf6 {[%clk 0:00:03.6]} 40. Bg2 {[%clk 0:00:08.8]} 40...
Qd7 {[%clk 0:00:02.3]} 41. Re1 {[%clk 0:00:09]} 41... Re8 {[%clk 0:00:02.2]} 42.
Rxe8+ {[%clk 0:00:07.7]} 42... Qxe8 {[%clk 0:00:03.1]} 43. h4 {[%clk 0:00:08.6]}
43... Qe7 {[%clk 0:00:03.2]} 44. Bxe7 {[%clk 0:00:08.2]} 44... Bxe7 {[%clk
0:00:04.1]} 45. Qb8+ {[%clk 0:00:08.2]} 45... Kg7 {[%clk 0:00:03.6]} 46. Qxb7
{[%clk 0:00:08.9]} 46... Kf7 {[%clk 0:00:04]} 47. Bxc6 {[%clk 0:00:08.8]} 47...
Kf6 {[%clk 0:00:02.7]} 48. Qxb5 {[%clk 0:00:08.7]} 1-0

[Event "*** SCC Grand Prix: Titled Tuesday Blitz"]
[Site "Chess.com"]
[Date "2020.06.02"]
[Round "4"]
[White "PawnEatingZombie"]
[Black "2nd_life"]
[Result "0-1"]
[WhiteElo "2211"]
[BlackElo "2425"]
[TimeControl "180+1"]
[EndTime "10:40:16 PDT"]
[Termination "2nd_life won on time"]

1. d4 {[%clk 0:03:00.9]} 1... Nf6 {[%clk 0:02:59.7]} 2. c4 {[%clk 0:03:01.3]}
2... e6 {[%clk 0:02:59.5]} 3. Nc3 {[%clk 0:03:01.9]} 3... Bb4 {[%clk 0:02:59]}
4. Qc2 {[%clk 0:03:02.5]} 4... O-O {[%clk 0:02:57.6]} 5. e4 {[%clk 0:03:02.1]}
5... d5 {[%clk 0:02:53.9]} 6. e5 {[%clk 0:03:02]} 6... Ne4 {[%clk 0:02:53.3]} 7.
Bd3 {[%clk 0:03:02.4]} 7... c5 {[%clk 0:02:52.7]} 8. Nf3 {[%clk 0:03:01.9]} 8...
cxd4 {[%clk 0:02:47.2]} 9. Nxd4 {[%clk 0:03:02.8]} 9... Nd7 {[%clk 0:02:37.1]}
10. Bf4 {[%clk 0:03:02.9]} 10... Ndc5 {[%clk 0:02:25.8]} 11. O-O {[%clk
0:02:57.2]} 11... Bxc3 {[%clk 0:01:39.6]} 12. bxc3 {[%clk 0:02:55.1]} 12... Nxd3
{[%clk 0:01:34.7]} 13. Qxd3 {[%clk 0:02:56]} 13... b6 {[%clk 0:01:26.8]} 14.
cxd5 {[%clk 0:02:55.8]} 14... Qxd5 {[%clk 0:01:20.6]} 15. Rfd1 {[%clk
0:02:19.4]} 15... Bb7 {[%clk 0:01:15.4]} 16. c4 {[%clk 0:02:05]} 16... Qd7
{[%clk 0:00:54.9]} 17. Qe3 {[%clk 0:01:43.6]} 17... Rfd8 {[%clk 0:00:51.7]} 18.
f3 {[%clk 0:01:35.3]} 18... Nc5 {[%clk 0:00:47]} 19. Bg5 {[%clk 0:01:32.3]}
19... Re8 {[%clk 0:00:26.6]} 20. Nb5 {[%clk 0:01:26.1]} 20... Qc6 {[%clk
0:00:22.5]} 21. Nd6 {[%clk 0:01:20.4]} 21... Rf8 {[%clk 0:00:21.5]} 22. Be7
{[%clk 0:01:14.8]} 22... Ba6 {[%clk 0:00:12.8]} 23. Qg5 {[%clk 0:00:53.4]} 23...
Kh8 {[%clk 0:00:10.4]} 24. Bxf8 {[%clk 0:00:35.5]} 24... Rxf8 {[%clk 0:00:09.5]}
25. Rd4 {[%clk 0:00:35.8]} 25... h6 {[%clk 0:00:08.4]} 26. Qe3 {[%clk 0:00:33]}
26... Kh7 {[%clk 0:00:06.9]} 27. Rad1 {[%clk 0:00:32.5]} 27... f6 {[%clk
0:00:06.7]} 28. exf6 {[%clk 0:00:30.9]} 28... Rxf6 {[%clk 0:00:06.9]} 29. Ne4
{[%clk 0:00:25.4]} 29... Rg6 {[%clk 0:00:06.7]} 30. Nxc5 {[%clk 0:00:19.5]}
30... Qxc5 {[%clk 0:00:06.8]} 31. Re4 {[%clk 0:00:15.6]} 31... Qxe3+ {[%clk
0:00:06.7]} 32. Rxe3 {[%clk 0:00:15.5]} 32... Bxc4 {[%clk 0:00:07.6]} 33. a3
{[%clk 0:00:14.4]} 33... Bd5 {[%clk 0:00:07]} 34. Kf2 {[%clk 0:00:13.8]} 34...
Rf6 {[%clk 0:00:07.2]} 35. Rc3 {[%clk 0:00:12.8]} 35... Rf7 {[%clk 0:00:07.4]}
36. Rdc1 {[%clk 0:00:09.8]} 36... a5 {[%clk 0:00:07.5]} 37. Rc7 {[%clk
0:00:10.1]} 37... Rf4 {[%clk 0:00:06.4]} 38. Re7 {[%clk 0:00:08.5]} 38... Rf6
{[%clk 0:00:05.4]} 39. Rcc7 {[%clk 0:00:08.4]} 39... Rg6 {[%clk 0:00:05.9]} 40.
h4 {[%clk 0:00:08.4]} 40... h5 {[%clk 0:00:06.1]} 41. Ra7 {[%clk 0:00:06.4]}
41... Kh6 {[%clk 0:00:05.3]} 42. g3 {[%clk 0:00:06.6]} 42... Kh7 {[%clk
0:00:05.2]} 43. f4 {[%clk 0:00:03.1]} 43... Kh6 {[%clk 0:00:05.5]} 44. Red7
{[%clk 0:00:02.7]} 44... Bc4 {[%clk 0:00:04.6]} 45. Re7 {[%clk 0:00:02.2]} 45...
b5 {[%clk 0:00:04.7]} 46. Reb7 {[%clk 0:00:01.5]} 46... Kh7 {[%clk 0:00:03.6]}
47. Rxa5 {[%clk 0:00:01.1]} 47... Rf6 {[%clk 0:00:02.9]} 0-1

[Event "*** SCC Grand Prix: Titled Tuesday Blitz"]
[Site "Chess.com"]
[Date "2020.06.02"]
[Round "4"]
[White "kleinebeer98"]
[Black "doons21"]
[Result "0-1"]
[WhiteElo "2658"]
[BlackElo "2497"]
[TimeControl "180+1"]
[EndTime "10:40:17 PDT"]
[Termination "doons21 won on time"]

1. e4 {[%clk 0:03:00.9]} 1... e6 {[%clk 0:02:57.8]} 2. d4 {[%clk 0:02:59.8]}
2... d5 {[%clk 0:02:58.1]} 3. Nc3 {[%clk 0:03:00.3]} 3... Bb4 {[%clk 0:02:58.4]}
4. e5 {[%clk 0:03:00.3]} 4... Ne7 {[%clk 0:02:58.9]} 5. a3 {[%clk 0:03:00.1]}
5... Bxc3+ {[%clk 0:02:58.9]} 6. bxc3 {[%clk 0:03:01]} 6... c5 {[%clk
0:02:59.3]} 7. Qg4 {[%clk 0:03:01.5]} 7... Kf8 {[%clk 0:02:59.5]} 8. h4 {[%clk
0:02:57.1]} 8... Qa5 {[%clk 0:02:59.4]} 9. Bd2 {[%clk 0:02:54.9]} 9... Qa4
{[%clk 0:02:59.8]} 10. h5 {[%clk 0:02:51.1]} 10... h6 {[%clk 0:02:57.9]} 11. Nf3
{[%clk 0:02:47.8]} 11... b6 {[%clk 0:02:52.5]} 12. Qf4 {[%clk 0:02:32]} 12...
Qxc2 {[%clk 0:02:45.7]} 13. Be2 {[%clk 0:02:06.5]} 13... Ba6 {[%clk 0:02:37.4]}
14. Bxa6 {[%clk 0:01:58.4]} 14... Nxa6 {[%clk 0:02:35.4]} 15. O-O {[%clk
0:01:57.5]} 15... Kg8 {[%clk 0:01:53.1]} 16. a4 {[%clk 0:01:42.4]} 16... Qe4
{[%clk 0:01:46.2]} 17. Qh2 {[%clk 0:01:28.8]} 17... Kh7 {[%clk 0:01:36.1]} 18.
Rfe1 {[%clk 0:01:22]} 18... Qg4 {[%clk 0:01:30.2]} 19. a5 {[%clk 0:01:00.6]}
19... Nc7 {[%clk 0:01:29.9]} 20. Be3 {[%clk 0:00:58.7]} 20... c4 {[%clk
0:01:22.4]} 21. Reb1 {[%clk 0:00:50.4]} 21... Nc6 {[%clk 0:01:15.2]} 22. a6
{[%clk 0:00:41.6]} 22... b5 {[%clk 0:01:11.2]} 23. Ne1 {[%clk 0:00:31.7]} 23...
Kg8 {[%clk 0:00:48.6]} 24. f3 {[%clk 0:00:25.7]} 24... Qf5 {[%clk 0:00:48.6]}
25. g4 {[%clk 0:00:26.6]} 25... Qh7 {[%clk 0:00:48.6]} 26. Bc1 {[%clk
0:00:17.9]} 26... Rb8 {[%clk 0:00:46.3]} 27. Ba3 {[%clk 0:00:17.8]} 27... b4
{[%clk 0:00:46.8]} 28. Bxb4 {[%clk 0:00:15.8]} 28... Nxb4 {[%clk 0:00:46.8]} 29.
Nc2 {[%clk 0:00:13.9]} 29... Nc6 {[%clk 0:00:44.5]} 30. Rxb8+ {[%clk 0:00:14]}
30... Nxb8 {[%clk 0:00:45.4]} 31. Rb1 {[%clk 0:00:14.9]} 31... Nbxa6 {[%clk
0:00:40.6]} 32. Rb7 {[%clk 0:00:14.9]} 32... Qd3 {[%clk 0:00:39.4]} 33. Nb4
{[%clk 0:00:14.9]} 33... Qxc3 {[%clk 0:00:35.3]} 34. Nc6 {[%clk 0:00:12.6]}
34... Qe1+ {[%clk 0:00:32]} 35. Kg2 {[%clk 0:00:12.5]} 35... Kh7 {[%clk
0:00:28.5]} 36. Qf4 {[%clk 0:00:11.1]} 36... Qe2+ {[%clk 0:00:28.3]} 37. Kg3
{[%clk 0:00:10.7]} 37... Rf8 {[%clk 0:00:24.6]} 38. Ne7 {[%clk 0:00:07.2]} 38...
c3 {[%clk 0:00:22.1]} 39. Ng6 {[%clk 0:00:07.6]} 39... Qe1+ {[%clk 0:00:20.6]}
40. Kh3 {[%clk 0:00:07.1]} 40... Qh1+ {[%clk 0:00:17.8]} 41. Kg3 {[%clk
0:00:07.5]} 41... Qe1+ {[%clk 0:00:16.6]} 42. Kh3 {[%clk 0:00:07.8]} 42... fxg6
{[%clk 0:00:12.9]} 43. hxg6+ {[%clk 0:00:07.7]} 43... Kxg6 {[%clk 0:00:13.8]}
44. Qxf8 {[%clk 0:00:07.2]} 44... c2 {[%clk 0:00:11.2]} 45. f4 {[%clk
0:00:02.8]} 45... Qf1+ {[%clk 0:00:08.6]} 46. Kh4 {[%clk 0:00:02.7]} 46... c1=Q
{[%clk 0:00:08.7]} 47. f5+ {[%clk 0:00:02.6]} 47... exf5 {[%clk 0:00:09.1]} 48.
gxf5+ {[%clk 0:00:01.3]} 48... Qxf5 {[%clk 0:00:10]} 0-1

[Event "*** SCC Grand Prix: Titled Tuesday Blitz"]
[Site "Chess.com"]
[Date "2020.06.02"]
[Round "4"]
[White "Perecke"]
[Black "Artem_Koval"]
[Result "1-0"]
[WhiteElo "2194"]
[BlackElo "2389"]
[TimeControl "180+1"]
[EndTime "10:40:17 PDT"]
[Termination "Perecke won on time"]

1. e4 {[%clk 0:03:00.9]} 1... c5 {[%clk 0:02:56.6]} 2. Nf3 {[%clk 0:02:57.1]}
2... d6 {[%clk 0:02:56.5]} 3. d4 {[%clk 0:02:47]} 3... cxd4 {[%clk 0:02:57.4]}
4. Nxd4 {[%clk 0:02:47.9]} 4... Nf6 {[%clk 0:02:57.2]} 5. Nc3 {[%clk 0:02:48.4]}
5... a6 {[%clk 0:02:57.7]} 6. h3 {[%clk 0:02:48.8]} 6... e5 {[%clk 0:02:57]} 7.
Nde2 {[%clk 0:02:48.3]} 7... b5 {[%clk 0:02:56.5]} 8. g4 {[%clk 0:02:48.5]} 8...
Bb7 {[%clk 0:02:56.9]} 9. Bg2 {[%clk 0:02:48.9]} 9... h6 {[%clk 0:02:54.8]} 10.
O-O {[%clk 0:02:38.1]} 10... Nbd7 {[%clk 0:02:53.6]} 11. f4 {[%clk 0:02:37.9]}
11... exf4 {[%clk 0:02:50.2]} 12. Bxf4 {[%clk 0:02:38.8]} 12... Ne5 {[%clk
0:02:50.3]} 13. Nd5 {[%clk 0:02:35.3]} 13... Nxd5 {[%clk 0:02:48.2]} 14. exd5
{[%clk 0:02:34.9]} 14... Be7 {[%clk 0:02:45.1]} 15. Nd4 {[%clk 0:02:07.6]} 15...
O-O {[%clk 0:02:37.1]} 16. Nf5 {[%clk 0:02:04.7]} 16... Bf6 {[%clk 0:02:35.9]}
17. Qd2 {[%clk 0:01:55.8]} 17... Nc4 {[%clk 0:02:19.7]} 18. Qf2 {[%clk
0:01:43.7]} 18... Bxb2 {[%clk 0:02:06.7]} 19. Rae1 {[%clk 0:01:26.6]} 19... Be5
{[%clk 0:02:01.4]} 20. Bxh6 {[%clk 0:01:21.2]} 20... Qb6 {[%clk 0:01:11.6]} 21.
Qxb6 {[%clk 0:00:58.8]} 21... Nxb6 {[%clk 0:01:12.5]} 22. Rxe5 {[%clk 0:00:34]}
22... dxe5 {[%clk 0:01:07.8]} 23. Bxg7 {[%clk 0:00:33]} 23... Rfe8 {[%clk
0:01:07.9]} 24. Bf6 {[%clk 0:00:28.5]} 24... Bxd5 {[%clk 0:00:46.9]} 25. Ne7+
{[%clk 0:00:10.9]} 25... Rxe7 {[%clk 0:00:46.7]} 26. Bxe7 {[%clk 0:00:11.8]}
26... Bxg2 {[%clk 0:00:46.4]} 27. Kxg2 {[%clk 0:00:12.7]} 27... Rc8 {[%clk
0:00:45.9]} 28. Rf2 {[%clk 0:00:11.8]} 28... Nd5 {[%clk 0:00:46.1]} 29. Bd6
{[%clk 0:00:09.8]} 29... e4 {[%clk 0:00:30.9]} 30. Re2 {[%clk 0:00:07]} 30...
Rxc2 {[%clk 0:00:10.7]} 31. Rxc2 {[%clk 0:00:06.9]} 31... Ne3+ {[%clk
0:00:10.9]} 32. Kg3 {[%clk 0:00:07.4]} 32... Nxc2 {[%clk 0:00:11.8]} 33. Kf4
{[%clk 0:00:07.7]} 33... e3 {[%clk 0:00:12]} 34. Kf3 {[%clk 0:00:08]} 34... b4
{[%clk 0:00:06.5]} 35. h4 {[%clk 0:00:07]} 35... a5 {[%clk 0:00:06.6]} 36. h5
{[%clk 0:00:06.3]} 36... a4 {[%clk 0:00:06.8]} 37. g5 {[%clk 0:00:05.5]} 37...
b3 {[%clk 0:00:04]} 38. axb3 {[%clk 0:00:05.2]} 38... axb3 {[%clk 0:00:04]} 39.
Be5 {[%clk 0:00:05.5]} 39... Kf8 {[%clk 0:00:01.3]} 40. h6 {[%clk 0:00:04.9]}
40... Kg8 {[%clk 0:00:01.6]} 41. Bb2 {[%clk 0:00:03]} 41... Kh7 {[%clk
0:00:02.2]} 42. Bf6 {[%clk 0:00:02.2]} 42... Kg6 {[%clk 0:00:02.4]} 43. Bc3
{[%clk 0:00:02.2]} 1-0

[Event "*** SCC Grand Prix: Titled Tuesday Blitz"]
[Site "Chess.com"]
[Date "2020.06.02"]
[Round "4"]
[White "Quiet_Desperation"]
[Black "MariaFominykh"]
[Result "1-0"]
[WhiteElo "2077"]
[BlackElo "2281"]
[TimeControl "180+1"]
[EndTime "10:40:17 PDT"]
[Termination "Quiet_Desperation won on time"]

1. e4 {[%clk 0:03:00.9]} 1... d6 {[%clk 0:02:58.5]} 2. d4 {[%clk 0:03:00.8]}
2... Nf6 {[%clk 0:02:58.8]} 3. Nc3 {[%clk 0:03:01.2]} 3... Nbd7 {[%clk
0:02:59.3]} 4. Nf3 {[%clk 0:03:01.4]} 4... e5 {[%clk 0:02:59.7]} 5. Bc4 {[%clk
0:03:01.5]} 5... Be7 {[%clk 0:02:58.7]} 6. O-O {[%clk 0:03:01.6]} 6... O-O
{[%clk 0:02:59.3]} 7. a4 {[%clk 0:03:01.7]} 7... c6 {[%clk 0:02:59.8]} 8. h3
{[%clk 0:03:01.3]} 8... b6 {[%clk 0:03:00.3]} 9. Re1 {[%clk 0:02:59.5]} 9... Bb7
{[%clk 0:03:00.3]} 10. a5 {[%clk 0:02:51.1]} 10... b5 {[%clk 0:02:53.6]} 11. Bd3
{[%clk 0:02:51]} 11... a6 {[%clk 0:02:53]} 12. Ne2 {[%clk 0:02:45.7]} 12... exd4
{[%clk 0:02:41.5]} 13. Nexd4 {[%clk 0:02:44.2]} 13... Re8 {[%clk 0:02:38.5]} 14.
Nf5 {[%clk 0:02:43.4]} 14... Bf8 {[%clk 0:02:38.2]} 15. Bg5 {[%clk 0:02:34.7]}
15... h6 {[%clk 0:02:32.5]} 16. Bf4 {[%clk 0:02:34.1]} 16... Ne5 {[%clk
0:02:26.2]} 17. c3 {[%clk 0:02:30.1]} 17... c5 {[%clk 0:02:13.2]} 18. Bc2 {[%clk
0:02:28.8]} 18... Nc4 {[%clk 0:01:56.9]} 19. b3 {[%clk 0:02:22.9]} 19... Ne5
{[%clk 0:01:21.4]} 20. Qe2 {[%clk 0:02:06.5]} 20... Ng6 {[%clk 0:01:12.6]} 21.
Bh2 {[%clk 0:01:48.4]} 21... Nxe4 {[%clk 0:01:12.5]} 22. Bxe4 {[%clk 0:01:47.1]}
22... Bxe4 {[%clk 0:01:08.8]} 23. Ng3 {[%clk 0:01:43.7]} 23... Bd5 {[%clk
0:01:00.7]} 24. Qd1 {[%clk 0:01:35]} 24... Rxe1+ {[%clk 0:00:59.8]} 25. Nxe1
{[%clk 0:01:35.1]} 25... Bc6 {[%clk 0:00:51.4]} 26. Nf5 {[%clk 0:01:34.8]} 26...
d5 {[%clk 0:00:48.4]} 27. Qf3 {[%clk 0:01:26.6]} 27... Qd7 {[%clk 0:00:41.1]}
28. Rd1 {[%clk 0:01:21.9]} 28... Re8 {[%clk 0:00:39.2]} 29. Nc2 {[%clk
0:01:13.6]} 29... d4 {[%clk 0:00:37.8]} 30. Qg4 {[%clk 0:01:13.6]} 30... d3
{[%clk 0:00:32.9]} 31. Nce3 {[%clk 0:01:13.3]} 31... d2 {[%clk 0:00:27.8]} 32.
h4 {[%clk 0:01:07.1]} 32... Kh8 {[%clk 0:00:24.4]} 33. h5 {[%clk 0:01:06.4]}
33... Ne5 {[%clk 0:00:24.4]} 34. Bxe5 {[%clk 0:01:00.5]} 34... Rxe5 {[%clk
0:00:25.3]} 35. Qf4 {[%clk 0:00:55.3]} 35... Re4 {[%clk 0:00:22.9]} 36. Qb8
{[%clk 0:00:50.2]} 36... Re8 {[%clk 0:00:22.7]} 37. Qf4 {[%clk 0:00:46.7]} 37...
Qd3 {[%clk 0:00:20.7]} 38. Qc7 {[%clk 0:00:41.8]} 38... Be4 {[%clk 0:00:14.3]}
39. Qxf7 {[%clk 0:00:41]} 39... Rd8 {[%clk 0:00:12.9]} 40. Ng3 {[%clk
0:00:29.7]} 40... Bh7 {[%clk 0:00:11.1]} 41. c4 {[%clk 0:00:23.9]} 41... Qxb3
{[%clk 0:00:06.2]} 42. Rxd2 {[%clk 0:00:22.2]} 42... Qb1+ {[%clk 0:00:04]} 43.
Kh2 {[%clk 0:00:19]} 43... Rxd2 {[%clk 0:00:03.9]} 44. Qxf8+ {[%clk 0:00:19.4]}
44... Bg8 {[%clk 0:00:04.5]} 45. Nef5 {[%clk 0:00:18]} 45... Rd7 {[%clk
0:00:03.6]} 46. f3 {[%clk 0:00:14.2]} 46... Qd3 {[%clk 0:00:04.2]} 47. Ne4
{[%clk 0:00:14.1]} 47... Qd1 {[%clk 0:00:03.9]} 48. Nf6 {[%clk 0:00:09.2]} 48...
Rf7 {[%clk 0:00:04]} 49. Qd8 {[%clk 0:00:07.5]} 1-0